fUSD/lending_fUSD_20241220
["ID","MTS","AMOUNT","RATE_DAILY","PERIOD"]
[346041037,1734653034498,154.29,0.00010137,2]
[346041044,1734653369143,-166.66666667,0.00021064,2]
[346041045,1734653369164,-155.59563945,0.00021164,2]
[346041048,1734653432317,-344.40436055,0.00021164,2]
[346041049,1734653432326,-500.0,0.00021164,2]
[346041050,1734653432336,-394.44,0.00021387,2]
[346041051,1734653432345,-1000.0,0.00022941,2]
[346041052,1734653432354,-175.94352,0.00023088,7]
[346041053,1734653432364,-250.0,0.00023138,2]
[346041054,1734653432373,-1011.3,0.00023273,2]
[346041055,1734653432381,-175.94352,0.00023288,7]
[346041056,1734653432390,-1000.0,0.00023299,2]
[346041057,1734653432400,-250.0,0.00023303,2]
[346041058,1734653432409,-300.0,0.00023314,2]
[346041059,1734653432418,-4596.74,0.00023315,2]
[346041060,1734653432427,-200.0,0.00023315,2]
[346041061,1734653432437,-152.37,0.00023318,2]
[346041062,1734653432446,-640.89,0.00023331,2]
[346041063,1734653432455,-150.0,0.0002334,2]
[346041064,1734653432467,-232.19,0.00023345,2]
[346041065,1734653432476,-500.0,0.00023356,2]
[346041066,1734653432486,-786.23,0.00023369,2]
[346041067,1734653432495,-190.42,0.00023377,2]
[346041068,1734653432505,-352.75,0.00023389,2]
[346041069,1734653432518,-219.75,0.00023422,2]
[346041070,1734653432528,-928.97,0.00023428,2]
[346041071,1734653432537,-293.62,0.00023452,2]
[346041072,1734653432547,-182.13,0.00023452,2]
[346041073,1734653432556,-206.10927564,0.00023452,2]
[346041074,1734653432575,-43.89072436,0.00023452,2]
[346041075,1734653432584,-489.56499998,0.00023476,2]
[346041076,1734653432593,-175.94352,0.00023488,7]
[346041077,1734653432602,-2526.0,0.000235,2]
[346041078,1734653432612,-500.0,0.000235,2]
[346041079,1734653432621,-300.0,0.000235,2]
[346041080,1734653432630,-400.0,0.000235,2]
[346041081,1734653432638,-242.36,0.00023503,2]
[346041082,1734653432648,-183.98,0.00023528,2]
[346041083,1734653432656,-200.0,0.00023544,2]
[346041084,1734653432666,-155.95,0.00023544,30]
[346041085,1734653432675,-200.0,0.00023546,2]
[346041086,1734653432685,-3719.39,0.00023558,2]
[346041087,1734653432694,-1500.0,0.00023568,2]
[346041088,1734653432704,-628.87,0.00023574,2]
[346041089,1734653432713,-23900.0,0.00023575,2]
[346041090,1734653432722,-3930.85,0.00023582,2]
[346041091,1734653432731,-2751.0,0.00023623,2]
[346041092,1734653432740,-394.44,0.00023651,2]
[346041093,1734653432750,-175.94352,0.00023688,7]
[346041094,1734653432762,-418.082,0.0002375,2]
[346041095,1734653432772,-250.0,0.00023962,2]
[346041096,1734653432782,-169.81,0.00024007,2]
[346041097,1734653432791,-500.0,0.00024048,2]
[346041098,1734653432800,-175.94352,0.00024088,7]
[346041099,1734653432809,-150.0,0.000241,2]
[346041100,1734653432819,-803.0,0.0002425,2]
[346041101,1734653432828,-168.83,0.00024252,2]
[346041102,1734653432838,-175.94352,0.00024288,7]
[346041103,1734653432847,-207.751,0.00024288,6]
[346041104,1734653432856,-152.0,0.00024395,3]
[346041105,1734653432865,-175.94352,0.00024488,7]
[346041107,1734653432875,-884.45584355,0.000245,2]
[346041108,1734653432885,-803.0,0.000245,2]
[346041109,1734653432894,-72266.41051017,0.000245,5]
[346041111,1734653432904,-190.42,0.00024546,2]
[346041113,1734653432913,-1543.97563251,0.00024625,2]
[346041115,1734653432923,-150.0,0.00024658,2]
[346041117,1734653432932,-175.94352,0.00024688,7]
[346041119,1734653432941,-150.0,0.00024743,2]
[346041121,1734653432951,-9337.6,0.0002475,2]
[346041123,1734653432960,-803.0,0.0002475,2]
[346041124,1734653432969,-300.0,0.00024799,10]
[346041125,1734653432979,-202.5,0.00024801,2]
[346041126,1734653432988,-150.0,0.00024807,2]
[346041127,1734653432998,-150.0,0.00024814,2]
[346041128,1734653433008,-150.0,0.00024814,2]
[346041129,1734653433022,-150.0,0.00024837,2]
[346041130,1734653433032,-150.0,0.00024852,2]
[346041131,1734653433043,-150.0,0.00024862,2]
[346041132,1734653433053,-14830.3652,0.0002488,2]
[346041133,1734653433063,-5862.0935,0.00024897,2]
[346041134,1734653433074,-300.0,0.00024897,10]
[346041135,1734653433083,-1785.51714721,0.00024898,2]
[346041136,1734653433093,-3693.8789,0.00024898,2]
[346041137,1734653433102,-1785.51714717,0.00024898,2]
[346041138,1734653433112,-1785.51714717,0.00024898,2]
[346041139,1734653433122,-1785.51714717,0.00024899,2]
[346041140,1734653433132,-1785.51714717,0.00024899,2]
[346041141,1734653433141,-4490.7494,0.00024899,2]
[346041142,1734653433151,-150.0,0.00024899,2]
[346041143,1734653433161,-157.87833534,0.00024899,2]
[346041144,1734653433172,-1785.51714717,0.00024899,2]
[346041145,1734653433182,-1785.51714717,0.00024899,2]
[346041146,1734653433192,-1785.51714717,0.000249,2]
[346041147,1734653433202,-1785.51714717,0.000249,2]
[346041148,1734653433212,-200.0,0.000249,2]
[346041149,1734653433222,-1785.51714717,0.000249,2]
[346041150,1734653433232,-221.76,0.000249,31]
[346041151,1734653433241,-221.76,0.000249,31]
[346041152,1734653433251,-221.76,0.000249,31]
[346041153,1734653433264,-221.76,0.000249,31]
[346041154,1734653433274,-221.76,0.000249,31]
[346041155,1734653433284,-221.76,0.000249,31]
[346041156,1734653433293,-202.5,0.00024901,2]
[346041157,1734653433303,-150.0,0.00024913,2]
[346041158,1734653433313,-500.0,0.00024973,2]
[346041159,1734653433324,-500.0,0.00024973,2]
[346041160,1734653433333,-523.04615889,0.00024973,2]
[346041161,1734653433343,-150.99,0.0002498,2]
[346041162,1734653433353,-299.99,0.0002498,7]
[346041163,1734653433363,-500.0,0.00024997,4]
[346041164,1734653433373,-500.62922401,0.00024997,4]
[346041165,1734653433383,-500.0,0.00024997,4]
[346041166,1734653433394,-500.0,0.00024998,4]
[346041167,1734653433404,-1000.0,0.00024998,5]
[346041168,1734653433414,-312.95831909,0.00024998,4]
[346041169,1734653433425,-501.08152239,0.00024998,4]
[346041170,1734653433435,-500.0,0.00024998,4]
[346041171,1734653433445,-500.0,0.00024998,4]
[346041172,1734653433455,-500.0,0.00024998,4]
[346041173,1734653433470,-500.0,0.00024998,4]
[346041174,1734653433480,-258.21547417,0.00024998,4]
[346041175,1734653433489,-500.0,0.00024998,4]
[346041176,1734653433499,-416.0010026,0.00024998,4]
[346041177,1734653433509,-500.0,0.00024998,4]
[346041178,1734653433521,-500.0,0.00024998,4]
[346041179,1734653433531,-500.0,0.00024998,4]
[346041180,1734653433542,-500.0,0.00024998,4]
[346041181,1734653433552,-500.0,0.00024998,4]
[346041182,1734653433563,-159.72271474,0.00024998,4]
[346041183,1734653433573,-500.0,0.00024998,4]
[346041184,1734653433583,-565.38,0.00024998,4]
[346041185,1734653433594,-500.0,0.00024998,4]
[346041186,1734653433604,-500.0,0.00024998,4]
[346041187,1734653433613,-159.50971459,0.00024998,4]
[346041188,1734653433623,-500.0,0.00024998,4]
[346041189,1734653433634,-500.0,0.00024998,4]
[346041190,1734653433645,-500.0,0.00024998,4]
[346041191,1734653433655,-500.0,0.00024998,4]
[346041192,1734653433665,-500.0,0.00024998,4]
[346041193,1734653433674,-500.0,0.00024998,4]
[346041194,1734653433683,-500.0,0.00024998,4]
[346041195,1734653433691,-500.0,0.00024998,4]
[346041196,1734653433700,-500.0,0.00024998,4]
[346041197,1734653433709,-500.0,0.00024998,4]
[346041198,1734653433719,-500.0,0.00024998,4]
[346041199,1734653433728,-607.71,0.00024998,4]
[346041200,1734653433737,-500.0,0.00024998,4]
[346041201,1734653433747,-500.0,0.00024998,4]
[346041202,1734653433757,-606.03,0.00024998,4]
[346041203,1734653433772,-500.0,0.00024998,4]
[346041204,1734653433783,-500.0,0.00024998,4]
[346041205,1734653433793,-582.89,0.00024998,4]
[346041206,1734653433803,-500.0,0.00024998,4]
[346041207,1734653433813,-500.0,0.00024998,4]
[346041208,1734653433823,-158.67,0.00024998,4]
[346041209,1734653433833,-563.32,0.00024998,4]
[346041210,1734653433843,-500.0,0.00024998,4]
[346041211,1734653433852,-10840.2,0.00024998,4]
[346041212,1734653433862,-500.0,0.00024998,4]
[346041213,1734653433872,-10840.2,0.00024998,4]
[346041214,1734653433883,-298.5,0.00024998,4]
[346041215,1734653433893,-448.05920248,0.00024998,4]
[346041216,1734653433903,-500.0,0.00024998,4]
[346041217,1734653433913,-543.82,0.00024998,4]
[346041218,1734653433923,-500.0,0.00024998,4]
[346041219,1734653433934,-500.0,0.00024998,4]
[346041220,1734653433944,-590.84,0.00024998,4]
[346041221,1734653433953,-500.0,0.00024998,4]
[346041222,1734653433963,-299.52,0.00024998,4]
[346041223,1734653433973,-451.12,0.00024998,4]
[346041224,1734653433983,-500.0,0.00024998,4]
[346041225,1734653433992,-500.0,0.00024998,4]
[346041226,1734653434002,-469.8,0.00024998,4]
[346041227,1734653434014,-500.0,0.00024998,4]
[346041228,1734653434023,-500.0,0.00024998,4]
[346041229,1734653434033,-361.1,0.00024998,4]
[346041230,1734653434043,-500.0,0.00024998,4]
[346041231,1734653434052,-500.0,0.00024999,4]
[346041232,1734653434063,-500.0,0.00024999,4]
[346041233,1734653434073,-500.0,0.00024999,4]
[346041234,1734653434084,-620.48175053,0.00024999,4]
[346041235,1734653434094,-500.0,0.00024999,4]
[346041236,1734653434104,-500.0,0.00024999,4]
[346041237,1734653434114,-425.20677007,0.00024999,4]
[346041238,1734653434124,-500.0,0.00024999,4]
[346041239,1734653434134,-500.0,0.00024999,4]
[346041240,1734653434144,-500.0,0.00024999,4]
[346041241,1734653434154,-500.0,0.00024999,4]
[346041242,1734653434163,-472.0,0.00024999,4]
[346041243,1734653434173,-500.0,0.00024999,4]
[346041244,1734653434183,-500.0,0.00024999,4]
[346041245,1734653434192,-233.97,0.00024999,4]
[346041246,1734653434202,-500.0,0.00024999,4]
[346041247,1734653434212,-500.0,0.00024999,4]
[346041248,1734653434221,-235.22,0.00024999,4]
[346041249,1734653434231,-500.0,0.00024999,4]
[346041250,1734653434241,-649.92,0.00024999,4]
[346041251,1734653434251,-500.0,0.00024999,4]
[346041252,1734653434262,-500.0,0.00024999,4]
[346041253,1734653434272,-500.0,0.00024999,4]
[346041254,1734653434282,-186.85,0.00024999,4]
[346041255,1734653434292,-500.0,0.00024999,4]
[346041256,1734653434302,-500.0,0.00024999,4]
[346041257,1734653434312,-500.0,0.00024999,4]
[346041258,1734653434322,-500.0,0.00024999,4]
[346041259,1734653434332,-500.0,0.00024999,4]
[346041260,1734653434342,-500.0,0.00024999,4]
[346041261,1734653434352,-500.0,0.00024999,4]
[346041262,1734653434362,-500.0,0.00024999,4]
[346041263,1734653434371,-500.0,0.00024999,4]
[346041264,1734653434382,-500.0,0.00024999,4]
[346041265,1734653434391,-500.0,0.00024999,4]
[346041266,1734653434401,-482.86,0.00024999,4]
[346041267,1734653434411,-500.0,0.00024999,4]
[346041268,1734653434420,-500.0,0.00024999,4]
[346041269,1734653434430,-500.0,0.00024999,4]
[346041270,1734653434439,-379.661711,0.00024999,4]
[346041271,1734653434449,-500.0,0.00024999,4]
[346041272,1734653434459,-500.0,0.00024999,4]
[346041273,1734653434471,-500.0,0.00024999,4]
[346041274,1734653434481,-500.0,0.00024999,4]
[346041275,1734653434491,-500.0,0.00024999,4]
[346041276,1734653434501,-214.24,0.00024999,4]
[346041277,1734653434513,-500.0,0.00024999,4]
[346041278,1734653434524,-500.0,0.00024999,4]
[346041279,1734653434533,-500.0,0.00024999,4]
[346041280,1734653434543,-500.0,0.00024999,4]
[346041281,1734653434552,-500.0,0.00024999,4]
[346041282,1734653434562,-500.0,0.00024999,4]
[346041283,1734653434571,-500.0,0.00024999,4]
[346041284,1734653434581,-500.0,0.00024999,4]
[346041285,1734653434590,-500.0,0.00024999,4]
[346041286,1734653434599,-500.0,0.00024999,4]
[346041287,1734653434608,-500.0,0.00024999,4]
[346041288,1734653434617,-500.0,0.00024999,4]
[346041289,1734653434627,-636.51,0.00024999,4]
[346041290,1734653434636,-500.0,0.00024999,4]
[346041291,1734653434645,-500.0,0.00024999,4]
[346041292,1734653434655,-500.0,0.00024999,4]
[346041293,1734653434664,-453.05181165,0.00024999,4]
[346041294,1734653434674,-500.0,0.00024999,4]
[346041295,1734653434683,-500.0,0.00024999,4]
[346041296,1734653434692,-500.0,0.00024999,4]
[346041297,1734653434702,-500.0,0.00024999,4]
[346041298,1734653434711,-500.0,0.00024999,4]
[346041299,1734653434721,-500.0,0.00024999,4]
[346041300,1734653434730,-500.0,0.00024999,4]
[346041301,1734653434739,-500.0,0.00024999,4]
[346041302,1734653434749,-500.0,0.00024999,4]
[346041303,1734653434763,-500.0,0.00024999,4]
[346041304,1734653434773,-500.0,0.00024999,4]
[346041305,1734653434783,-500.0,0.00024999,4]
[346041306,1734653434792,-500.0,0.00024999,4]
[346041307,1734653434802,-500.0,0.00024999,4]
[346041308,1734653434811,-500.0,0.00024999,4]
[346041309,1734653434820,-500.0,0.00024999,4]
[346041310,1734653434830,-500.0,0.00024999,4]
[346041311,1734653434840,-500.0,0.00024999,4]
[346041312,1734653434849,-500.0,0.00024999,4]
[346041313,1734653434859,-500.0,0.00024999,4]
[346041314,1734653434869,-452.8536,0.00024999,4]
[346041315,1734653434878,-500.0,0.00024999,4]
[346041316,1734653434888,-500.0,0.00024999,4]
[346041317,1734653434898,-500.0,0.00024999,4]
[346041318,1734653434907,-500.0,0.00024999,4]
[346041319,1734653434917,-500.0,0.00024999,4]
[346041320,1734653434927,-500.0,0.00024999,4]
[346041321,1734653434936,-500.0,0.00024999,4]
[346041322,1734653434945,-500.0,0.00024999,4]
[346041323,1734653434955,-500.0,0.00024999,4]
[346041324,1734653434964,-500.0,0.00024999,4]
[346041325,1734653434974,-584.24916022,0.00024999,4]
[346041326,1734653434983,-680.59103,0.00024999,2]
[346041327,1734653434992,-10840.2,0.00024999,4]
[346041328,1734653435002,-10840.2,0.00024999,4]
[346041329,1734653435015,-10840.2,0.00024999,4]
[346041330,1734653435024,-10840.2,0.00024999,4]
[346041331,1734653435033,-10840.2,0.00024999,4]
[346041332,1734653435043,-10840.2,0.00024999,4]
[346041333,1734653435052,-10840.2,0.00024999,4]
[346041334,1734653435062,-10840.2,0.00024999,4]
[346041335,1734653435204,-10840.2,0.00024999,4]
[346041336,1734653435216,-10840.2,0.00024999,4]
[346041337,1734653435226,-10840.2,0.00024999,4]
[346041338,1734653435235,-10840.2,0.00024999,4]
[346041339,1734653435245,-10840.2,0.00024999,4]
[346041340,1734653435254,-156.62828631,0.00024999,4]
[346041341,1734653435371,-221.76,0.000249,31]
[346041342,1734653435381,-10683.57171369,0.00024999,4]
[346041343,1734653435390,-9857.92498319,0.00024999,4]
[346041345,1734653438171,-3743.47870464,0.00024899,2]
[346041346,1734653438181,-221.76,0.000249,31]
[346041347,1734653438190,-221.76,0.000249,31]
[346041348,1734653438200,-221.76,0.000249,31]
[346041349,1734653438209,-221.76,0.000249,31]
[346041350,1734653438218,-221.76,0.000249,31]
[346041351,1734653438228,-221.76,0.000249,31]
[346041352,1734653438237,-221.76,0.000249,31]
[346041353,1734653438246,-221.76,0.000249,31]
[346041354,1734653438255,-221.76,0.000249,31]
[346041355,1734653438268,-982.27501681,0.00024999,4]
[346041356,1734653438277,-10840.2,0.00024999,4]
[346041357,1734653438287,-10840.2,0.00024999,4]
[346041358,1734653438296,-10840.2,0.00024999,4]
[346041359,1734653438305,-10840.2,0.00024999,4]
[346041360,1734653438315,-10840.2,0.00024999,4]
[346041361,1734653438324,-10840.2,0.00024999,4]
[346041362,1734653438333,-10840.30192086,0.00024999,4]
[346041363,1734653438342,-500.0,0.00024999,4]
[346041364,1734653438352,-500.0,0.00024999,4]
[346041365,1734653438361,-500.0,0.00024999,4]
[346041366,1734653438370,-500.0,0.00024999,4]
[346041367,1734653438380,-500.0,0.00024999,4]
[346041368,1734653438390,-500.0,0.00024999,4]
[346041369,1734653438399,-500.0,0.00024999,4]
[346041370,1734653438408,-341.30525494,0.00024999,4]
[346041371,1734653438418,-500.0,0.00024999,4]
[346041372,1734653438427,-500.0,0.00024999,4]
[346041373,1734653438436,-500.0,0.00024999,4]
[346041374,1734653438445,-500.0,0.00024999,4]
[346041375,1734653438455,-500.0,0.00024999,4]
[346041376,1734653438465,-500.0,0.00024999,4]
[346041377,1734653438477,-500.0,0.00024999,4]
[346041378,1734653438486,-500.0,0.00024999,4]
[346041379,1734653438495,-500.0,0.00024999,4]
[346041380,1734653438505,-500.0,0.00024999,4]
[346041381,1734653438520,-500.0,0.00024999,4]
[346041382,1734653438530,-500.0,0.00024999,4]
[346041383,1734653438539,-500.0,0.00024999,4]
[346041385,1734653438550,-500.0,0.00024999,4]
[346041386,1734653438559,-500.0,0.00024999,4]
[346041387,1734653438568,-500.0,0.00024999,4]
[346041388,1734653438577,-500.0,0.00024999,4]
[346041389,1734653438586,-500.0,0.00024999,4]
[346041390,1734653438595,-500.0,0.00024999,4]
[346041392,1734653438604,-500.0,0.00024999,4]
[346041394,1734653438613,-500.0,0.00024999,4]
[346041396,1734653438622,-500.0,0.00024999,4]
[346041397,1734653438631,-168.39583515,0.00024999,4]
[346041399,1734653438640,-150.0,0.00024999,2]
[346041402,1734653438650,-150.0,0.00024999,2]
[346041403,1734653438659,-150.0,0.00024999,2]
[346041405,1734653438668,-150.0,0.00024999,2]
[346041407,1734653438677,-500.0,0.00024999,4]
[346041409,1734653438685,-512.85,0.00024999,4]
[346041411,1734653438695,-150.0,0.00024999,2]
[346041413,1734653438704,-150.0,0.00024999,2]
[346041415,1734653438714,-150.0,0.00024999,2]
[346041418,1734653438724,-150.0,0.00024999,2]
[346041419,1734653438734,-150.0,0.00024999,2]
[346041423,1734653438744,-150.0,0.00024999,2]
[346041425,1734653438753,-150.0,0.00024999,2]
[346041426,1734653438762,-150.0,0.00024999,2]
[346041429,1734653438775,-150.0,0.00024999,2]
[346041431,1734653438784,-150.0,0.00024999,2]
[346041433,1734653438794,-150.0,0.00024999,2]
[346041435,1734653438803,-150.0,0.00024999,2]
[346041436,1734653438813,-150.0,0.00024999,2]
[346041439,1734653438822,-150.0,0.00024999,2]
[346041441,1734653438832,-150.0,0.00024999,2]
[346041442,1734653438841,-150.0,0.00024999,2]
[346041444,1734653438851,-150.0,0.00024999,2]
[346041447,1734653438861,-150.0,0.00024999,2]
[346041448,1734653438871,-174.78517118,0.00024999,2]
[346041450,1734653438880,-833.0,0.00025,2]
[346041452,1734653438889,-3205.07396286,0.00025,3]
[346041455,1734653438902,-242421.21355922,0.00025,3]
[346041457,1734653438912,-2970.35060051,0.00025,2]
[346041459,1734653438924,-1356.04115267,0.00025,2]
[346041461,1734653438933,-10687513.42970653,0.00025,2]
[346041463,1734653438945,-1927.29943806,0.00025,2]
[346041465,1734653438957,-414.86157388,0.00025,2]
[346041467,1734653438968,-765.49323202,0.00025,2]
[346041469,1734653438979,-6833.3584896,0.00025,2]
[346041572,1734653440236,-345924.15741902,0.00025,2]
[346041573,1734653440445,-2049.89997072,0.00025,2]
[346041685,1734653443151,-1764.09695905,0.00024899,2]
[346041686,1734653443257,-1979.38174558,0.00024899,2]
[346041687,1734653443266,-444.55222177,0.00025,2]
[346041705,1734653446074,-250.44777823,0.00025,2]
[346041706,1734653446084,-1713.40221677,0.00025,2]
[346041707,1734653446127,-3353.05335427,0.00025,2]
[346041708,1734653446138,-1267.89063237,0.00025,2]
[346041709,1734653446181,-684.71968,0.00025,2]
[346041710,1734653446236,-275.30302261,0.00024999,2]
[346041711,1734653446245,-362.81519655,0.00025,2]
[346041712,1734653446256,-604.97547806,0.00025,2]
[346041713,1734653446341,-28427.360531,0.00025,2]
[346041714,1734653446352,-97954.82780883,0.00025,2]
[346042038,1734654551134,-500.0,0.00021164,2]
[346042039,1734654551157,-480.0,0.00021164,2]
[346042054,1734654636005,-20.0,0.00021164,2]
[346042055,1734654636014,-402.6,0.00021579,2]
[346042056,1734654636023,-500.0,0.00022899,4]
[346042057,1734654636032,-77.4,0.00022899,4]
[346042058,1734654636063,-422.6,0.00022899,4]
[346042059,1734654636072,-500.0,0.00022899,4]
[346042060,1734654636081,-513.77,0.00022899,4]
[346042061,1734654636090,-501.26733463,0.00022899,4]
[346042062,1734654636101,-116.94266537,0.00022899,4]
[346042063,1734654636110,-500.0,0.00022899,4]
[346042064,1734654636119,-500.0,0.00022899,4]
[346042065,1734654636128,-500.0,0.00022899,4]
[346042066,1734654636137,-186.98746677,0.00022899,4]
[346042067,1734654636149,-313.01253323,0.00022899,4]
[346042068,1734654636158,-6.48746677,0.000229,2]
[346042069,1734654636169,-24747.06296211,0.000229,2]
[346042070,1734654636341,-6840.0,0.000229,2]
[346042071,1734654636352,-294.07692635,0.000229,2]
[346042072,1734654636363,-679.2768282,0.000229,2]
[346042073,1734654636373,-636.8999998,0.000229,2]
[346042074,1734654636384,-630.1214688,0.000229,2]
[346042075,1734654636396,-494.027565,0.000229,2]
[346042134,1734654638187,-208071.2897066,0.000229,2]
[346042135,1734654638196,-16900.21981527,0.00023,2]
[346042136,1734654638205,-697.81,0.00023,2]
[346042137,1734654638214,-2183.32,0.00023338,2]
[346042138,1734654638223,-500.0,0.00023356,2]
[346042139,1734654638232,-166.2,0.00023356,3]
[346042140,1734654638240,-666.06,0.00023398,2]
[346042141,1734654638249,-300.0,0.00023537,2]
[346042142,1734654638258,-176.89121322,0.00023551,2]
[346042143,1734654638267,-46366.7338,0.00023571,2]
[346042144,1734654638276,-250.0,0.00023651,2]
[346042145,1734654638285,-950.07,0.00023671,2]
[346042146,1734654638294,-420.297,0.0002375,2]
[346042147,1734654638304,-150.0,0.00023752,2]
[346042148,1734654638313,-402.6,0.00023843,2]
[346042149,1734654638322,-187.13,0.00023852,2]
[346042150,1734654638331,-1000.0,0.00023863,2]
[346042151,1734654638339,-504.08,0.00024,4]
[346042152,1734654638348,-500.0,0.00024,4]
[346042153,1734654638359,-3339.5618985,0.00024,2]
[346042154,1734654638368,-43346.98924494,0.00024,2]
[346042155,1734654638377,-6718.0,0.00024014,2]
[346042156,1734654638386,-354.43,0.00024055,2]
[346042157,1734654638405,-155.95,0.00024082,30]
[346042158,1734654638415,-150.8844742,0.00024137,2]
[346042159,1734654638425,-150.0,0.00024192,2]
[346042160,1734654638434,-300.0,0.00024192,2]
[346042161,1734654638444,-301.4,0.00024192,2]
[346042162,1734654638455,-150.0,0.00024358,120]
[346042163,1734654638464,-1002.43973615,0.000245,2]
[346042164,1734654638473,-150.0,0.00024569,120]
[346042165,1734654638482,-7694.15893641,0.000246,2]
[346042166,1734654638492,-150.0,0.00024658,2]
[346042167,1734654638502,-150.0,0.00024699,2]
[346042168,1734654638511,-331.77892963,0.000248,2]
[346042169,1734654638520,-2994.78296374,0.000248,2]
[346042170,1734654638530,-1000.0,0.000248,2]
[346042171,1734654638539,-2994.7829637,0.00024811,2]
[346042172,1734654638549,-2994.7829637,0.00024822,2]
[346042173,1734654638561,-2994.7829637,0.00024833,2]
[346042174,1734654638570,-2994.7829637,0.00024844,2]
[346042175,1734654638580,-200.0,0.00024852,14]
[346042176,1734654638589,-2994.7829637,0.00024856,2]
[346042177,1734654638599,-200.0,0.00024866,14]
[346042178,1734654638608,-2994.7829637,0.00024867,2]
[346042179,1734654638617,-2994.7829637,0.00024878,2]
[346042180,1734654638627,-2994.7829637,0.00024889,2]
[346042181,1734654638636,-585.7918,0.00024898,2]
[346042182,1734654638645,-21921.8956,0.00024898,2]
[346042183,1734654638654,-200.0,0.00024898,14]
[346042184,1734654638664,-20702.2936,0.000249,2]
[346042185,1734654638673,-186.3,0.000249,31]
[346042186,1734654638683,-186.3,0.000249,31]
[346042188,1734654638693,-186.3,0.000249,31]
[346042190,1734654638702,-186.3,0.000249,31]
[346042192,1734654638711,-186.3,0.000249,31]
[346042194,1734654638720,-186.3,0.000249,31]
[346042196,1734654638730,-186.3,0.000249,31]
[346042198,1734654638739,-186.3,0.000249,31]
[346042200,1734654638748,-186.3,0.000249,31]
[346042202,1734654638757,-186.3,0.000249,31]
[346042204,1734654638766,-186.3,0.000249,31]
[346042206,1734654638775,-186.3,0.000249,31]
[346042209,1734654638784,-186.3,0.000249,31]
[346042212,1734654638794,-186.3,0.000249,31]
[346042215,1734654638806,-186.3,0.000249,31]
[346042218,1734654638816,-186.3,0.000249,31]
[346042221,1734654638826,-14479.67653186,0.000249,2]
[346042224,1734654638835,-1000.0,0.000249,120]
[346042227,1734654638844,-2994.7829637,0.000249,2]
[346042229,1734654638853,-500.0,0.00024983,4]
[346042231,1734654638865,-500.0,0.00024984,4]
[346042233,1734654638875,-500.0,0.00024984,4]
[346042235,1734654638884,-500.0,0.00024984,4]
[346042237,1734654638893,-500.0,0.00024984,4]
[346042239,1734654638903,-500.0,0.00024984,4]
[346042241,1734654638915,-500.0,0.00024984,4]
[346042243,1734654638925,-508.51,0.00024984,4]
[346042245,1734654638935,-500.0,0.00024984,4]
[346042247,1734654638946,-500.0,0.00024984,4]
[346042249,1734654638955,-500.0,0.00024984,4]
[346042252,1734654638968,-500.0,0.00024984,4]
[346042254,1734654638977,-500.0,0.00024984,4]
[346042255,1734654638987,-500.0,0.00024984,4]
[346042258,1734654638996,-500.0,0.00024984,4]
[346042259,1734654639006,-500.0,0.00024984,4]